Workbook

Sheet Rockbelt
A1: Autor: Sandro 18.12.2015 info@rockbelt.ch
A3: Def.: RSI
A5: Es wird ein Zeitraum T betrachtet.
A6: avg(up) = Summe aller Gewinne im Zeitraum T
A7: avg(down) = Summe aller Verluste im Zeitraum T
A9: RS = avg(up) / avg(down)
A10: RSI = 100 - 100 / (1 + RS )
B30: blaue Striche = kaufen - rote Striche = verkaufen / RSI = grün / DAX = grau
A32: Realisierung in Excel:
A33: Den manuellen Teil habe ich es besonders simpel gehalten
A34: damit Du es leicht nachvollziehen kannst.
A35: Die VBA-Programme findet ihr wie immer im VBA-Rockbelt-Modul.
D37: Berechnung per Programm | I37: manuelle Berechnung - RSI | P37: Mikro - Handelssystem
D38: man. oder per Button ändern | I38: fix 10 Tage | P38: ="kaufen bei RSI < "&R38 -> kaufen bei RSI < 30 | R38: 30 | U38: RSI
A39: Beispiel anhand der Kurse des DAX | D39: 19 | F39: 41 | G39: = von Zeile | K39: sum(fallend) | L39: steigend | M39: RS relative | P39: ="verkaufen bei RSI > "&R39 -> verkaufen bei RSI > 70 | R39: 70 | U39: Projektion auf
A40: Tag | B40: Kurs | D40: RSI | F40: 3925 | G40: = bis Zeile | I40: Diff-fallend | J40: Diff-steigend | K40: / Anz.Perioden | L40: / Anz.Perioden | M40: Stärke | N40: RSI | U40: den Chart
A41: 2001-01-01 | B41: 6361.72 | F41: 2 | G41: = Spalte-Kurse | P41: warten | Q41: warten | R41: =IF(LEFT(Q41,1)="K",B41,0) -> 0 | S41: =IF(LEFT(Q41,1)="V",B41,0) -> 0 | U41: =IF(D41="",0,D41*20+3000) -> 0
A42: 2001-01-02 | B42: 6289.82 | F42: 4 | G42: = Spalte-RSI | I42: =IF(B42<B41,B41-B42,0) -> 71.9 | J42: =IF(B42>B41,B42-B41,0) -> 0 | P42: =IF(D42="","warten",IF(D42>R_RSI_high,"short",IF(D42<R_RSI_low,"long",P41))) -> warten | Q42: =IF(P42=P41,"stay " &P42,IF(P42="long","K A U F E N (go long)","V E R K A U F E N (go short)")) -> stay warten | R42: =IF(LEFT(Q42,1)="K",B42,0) -> 0 | S42: =IF(LEFT(Q42,1)="V",B42,0) -> 0 | U42: =IF(D42="",0,D42*20+3000) -> 0
A43: 2001-01-03 | B43: 6434.96 | I43: =IF(B43<B42,B42-B43,0) -> 0 | J43: =IF(B43>B42,B43-B42,0) -> 145.14 | P43: warten | Q43: =IF(P43=P42,"stay " &P43,IF(P43="long","K A U F E N (go long)","V E R K A U F E N (go short)")) -> stay warten | R43: 0 | S43: 0 | U43: 0
A44: 2001-01-04 | B44: 6376.54 | I44: 58.42 | J44: 0 | P44: warten | Q44: stay warten | R44: 0 | S44: 0 | U44: 0
A45: 2001-01-05 | B45: 6382.31 | I45: 0 | J45: 5.77 | P45: warten | Q45: stay warten | R45: 0 | S45: 0 | U45: 0
A46: 2001-01-08 | B46: 6392.17 | I46: 0 | J46: 9.86 | P46: warten | Q46: stay warten | R46: 0 | S46: 0 | U46: 0
A47: 2001-01-09 | B47: 6404.52 | I47: 0 | J47: 12.35 | P47: warten | Q47: stay warten | R47: 0 | S47: 0 | U47: 0
A48: 2001-01-10 | B48: 6320.07 | I48: 84.45 | J48: 0 | P48: warten | Q48: stay warten | R48: 0 | S48: 0 | U48: 0
A49: 2001-01-11 | B49: 6465.21 | I49: 0 | J49: 145.14 | P49: warten | Q49: stay warten | R49: 0 | S49: 0 | U49: 0
A50: 2001-01-12 | B50: 6490.03 | I50: 0 | J50: 24.82 | K50: =SUM(I42:I50)/10 -> 21.477 | L50: =SUM(J42:J50)/10 -> 34.308 | M50: =IF(K50=0,0,L50/K50) -> 1.597429809 | N50: =100-(100/(1+M50)) -> 61.50040333 | P50: warten | Q50: stay warten | R50: 0 | S50: 0 | U50: 0
A51: 2001-01-15 | B51: 6522.87 | I51: =IF(B51<B50,B50-B51,0) -> 0 | J51: =IF(B51>B50,B51-B50,0) -> 32.84 | K51: =SUM(I43:I51)/10 -> 14.287 | L51: 37.592 | M51: =IF(K51=0,0,L51/K51) -> 2.631203192 | N51: =100-(100/(1+M51)) -> 72.46091868 | P51: warten | Q51: stay warten | R51: =IF(LEFT(Q51,1)="K",B51,0) -> 0 | S51: =IF(LEFT(Q51,1)="V",B51,0) -> 0 | U51: 0
A52: 2001-01-16 | B52: 6502.89 | I52: 19.98 | J52: 0 | K52: =SUM(I44:I52)/10 -> 16.285 | L52: 23.078 | M52: 1.41713233 | N52: 58.62866143 | P52: warten | Q52: stay warten | R52: 0 | S52: 0 | U52: 0
A53: 2001-01-17 | B53: 6653.38 | I53: 0 | J53: 150.49 | K53: =SUM(I45:I53)/10 -> 10.443 | L53: 38.127 | M53: 3.650962367 | N53: 78.4990735 | P53: warten | Q53: stay warten | R53: 0 | S53: 0 | U53: 0
A54: 2001-01-18 | B54: 6635.76 | I54: 17.62 | J54: 0 | K54: =SUM(I46:I54)/10 -> 12.205 | L54: 37.55 | M54: 3.076607948 | N54: 75.46980203 | P54: warten | Q54: stay warten | R54: 0 | S54: 0 | U54: 0
A55: 2001-01-19 | B55: 6651.53 | I55: 0 | J55: 15.77 | K55: =SUM(I47:I55)/10 -> 12.205 | L55: 38.141 | M55: 3.125030725 | N55: 75.75775633 | P55: warten | Q55: stay warten | R55: 0 | S55: 0 | U55: 0
A56: 2001-01-22 | B56: 6675 | I56: 0 | J56: 23.47 | K56: =SUM(I48:I56)/10 -> 12.205 | L56: 39.253 | M56: 3.216140926 | N56: 76.28162774 | P56: warten | Q56: stay warten | R56: 0 | S56: 0 | U56: 0
A57: 2001-01-23 | B57: 6722.41 | I57: 0 | J57: 47.41 | K57: =SUM(I49:I57)/10 -> 3.76 | L57: 43.994 | M57: 11.70053191 | N57: 92.12631403 | P57: warten | Q57: stay warten | R57: 0 | S57: 0 | U57: 0
A58: 2001-01-24 | B58: 6706.67 | I58: 15.74 | J58: 0 | K58: =SUM(I50:I58)/10 -> 5.334 | L58: 29.48 | M58: 5.526809149 | N58: 84.67857758 | P58: warten | Q58: stay warten | R58: 0 | S58: 0 | U58: 0
A59: 2001-01-25 | B59: 6727.49 | D59: 70.27572368 | I59: 0 | J59: 20.82 | K59: =SUM(I51:I59)/10 -> 5.334 | L59: 29.08 | M59: 5.451818523 | N59: 84.50049399 | P59: short | Q59: V E R K A U F E N (go short) | R59: 0 | S59: 6727.49 | U59: 4405.514474
A60: 2001-01-26 | B60: 6695.2 | D60: 73.50355992 | I60: 32.29 | J60: 0 | K60: =SUM(I52:I60)/10 -> 8.563 | L60: 25.796 | M60: 3.012495621 | N60: 75.07785442 | P60: short | Q60: stay short | R60: 0 | S60: 0 | U60: 4470.071198
A61: 2001-01-29 | B61: 6750.96 | D61: 70.43984476 | I61: 0 | J61: 55.76 | K61: =SUM(I53:I61)/10 -> 6.565 | L61: 31.372 | M61: 4.778674791 | N61: 82.69499433 | P61: short | Q61: stay short | R61: 0 | S61: 0 | U61: 4408.796895
A62: 2001-01-30 | B62: 6739.3 | D62: 74.97521481 | I62: 11.66 | J62: 0 | K62: =SUM(I54:I62)/10 -> 7.731 | L62: 16.323 | M62: 2.11136981 | N62: 67.85981542 | P62: short | Q62: stay short | R62: 0 | S62: 0 | U62: 4499.504296
A63: 2001-01-31 | B63: 6795.14 | D63: 76.58924914 | I63: 0 | J63: 55.84 | K63: =SUM(I55:I63)/10 -> 5.969 | L63: 21.907 | M63: 3.670129 | N63: 78.58731525 | P63: short | Q63: stay short | R63: 0 | S63: 0 | U63: 4531.784983
A64: 2001-02-01 | B64: 6704.68 | D64: 68.23470376 | I64: 90.46 | J64: 0 | K64: =SUM(I56:I64)/10 -> 15.015 | L64: 20.33 | M64: 1.353979354 | N64: 57.51874381 | P64: short | Q64: stay short | R64: 0 | S64: 0 | U64: 4364.694075
A65: 2001-02-02 | B65: 6638.2 | D65: 62.82490341 | I65: 66.48 | J65: 0 | K65: =SUM(I57:I65)/10 -> 21.663 | L65: 17.983 | M65: 0.8301250981 | N65: 45.3589265 | P65: short | Q65: stay short | R65: 0 | S65: 0 | U65: 4256.498068
A66: 2001-02-05 | B66: 6628.07 | D66: 68.40520126 | I66: 10.13 | J66: 0 | K66: =SUM(I58:I66)/10 -> 22.676 | L66: 13.242 | M66: 0.583965426 | N66: 36.86730887 | P66: short | Q66: stay short | R66: 0 | S66: 0 | U66: 4368.104025
A67: 2001-02-06 | B67: 6693.03 | D67: 65.05670553 | I67: 0 | J67: 64.96 | K67: =SUM(I59:I67)/10 -> 21.102 | L67: 19.738 | M67: 0.9353615771 | N67: 48.33006856 | P67: short | Q67: stay short | R67: 0 | S67: 0 | U67: 4301.134111
A68: 2001-02-07 | B68: 6578.96 | D68: 55.25721515 | I68: 114.07 | J68: 0 | K68: =SUM(I60:I68)/10 -> 32.509 | L68: 17.656 | M68: 0.5431111385 | N68: 35.19585368 | P68: short | Q68: stay short | R68: 0 | S68: 0 | U68: 4105.144303
A69: 2001-02-08 | B69: 6636.81 | D69: 56.54225999 | I69: 0 | J69: 57.85 | K69: =SUM(I61:I69)/10 -> 29.28 | L69: 23.441 | M69: 0.8005806011 | N69: 44.46235845 | P69: short | Q69: stay short | R69: 0 | S69: 0 | U69: 4130.8452
A70: 2001-02-09 | B70: 6497.07 | D70: 49.70622678 | I70: 139.74 | J70: 0 | K70: =SUM(I62:I70)/10 -> 43.254 | L70: 17.865 | M70: 0.4130253849 | N70: 29.22986305 | P70: short | Q70: stay short | R70: 0 | S70: 0 | U70: 3994.124536
A71: 2001-02-12 | B71: 6564.91 | D71: 45.12782104 | I71: 0 | J71: 67.84 | K71: =SUM(I63:I71)/10 -> 42.088 | L71: 24.649 | M71: 0.5856538681 | N71: 36.93453407 | P71: short | Q71: stay short | R71: 0 | S71: 0 | U71: 3902.556421
A72: 2001-02-13 | B72: 6557.93 | D72: 45.66295541 | I72: 6.98 | J72: 0 | K72: =SUM(I64:I72)/10 -> 42.786 | L72: 19.065 | M72: 0.4455896789 | N72: 30.82407722 | P72: short | Q72: stay short | R72: 0 | S72: 0 | U72: 3913.259108
A73: 2001-02-14 | B73: 6479.87 | D73: 41.05527533 | I73: 78.06 | J73: 0 | K73: =SUM(I65:I73)/10 -> 41.546 | L73: 19.065 | M73: 0.4588889424 | N73: 31.45468644 | P73: short | Q73: stay short | R73: 0 | S73: 0 | U73: 3821.105507
A74: 2001-02-15 | B74: 6591.67 | D74: 46.02391472 | I74: 0 | J74: 111.8 | K74: =SUM(I66:I74)/10 -> 34.898 | L74: 30.245 | M74: 0.866668577 | N74: 46.42862625 | P74: short | Q74: stay short | R74: 0 | S74: 0 | U74: 3920.478294
A75: 2001-02-16 | B75: 6439.26 | D75: 37.71999063 | I75: 152.41 | J75: 0 | K75: =SUM(I67:I75)/10 -> 49.126 | L75: 30.245 | M75: 0.6156617677 | N75: 38.1058573 | P75: short | Q75: stay short | R75: 0 | S75: 0 | U75: 3754.399813
A76: 2001-02-19 | B76: 6472.21 | D76: 39.98119819 | I76: 0 | J76: 32.95 | K76: =SUM(I68:I76)/10 -> 49.126 | L76: 27.044 | M76: 0.5505027887 | N76: 35.50479191 | P76: short | Q76: stay short | R76: 0 | S76: 0 | U76: 3799.623964
A77: 2001-02-20 | B77: 6451.57 | D77: 38.2077407 | I77: 20.64 | J77: 0 | K77: =SUM(I69:I77)/10 -> 39.783 | L77: 27.044 | M77: 0.6797878491 | N77: 40.46867284 | P77: short | Q77: stay short | R77: 0 | S77: 0 | U77: 3764.154814
A78: 2001-02-21 | B78: 6347.99 | D78: 36.01324514 | I78: 103.58 | J78: 0 | K78: =SUM(I70:I78)/10 -> 50.141 | L78: 21.259 | M78: 0.4239843641 | N78: 29.7745098 | P78: short | Q78: stay short | R78: 0 | S78: 0 | U78: 3720.264903
A79: 2001-02-22 | B79: 6277.99 | D79: 31.16332789 | I79: 70 | J79: 0 | K79: =SUM(I71:I79)/10 -> 43.167 | L79: 21.259 | M79: 0.4924826835 | N79: 32.99754757 | P79: short | Q79: stay short | R79: 0 | S79: 0 | U79: 3623.266558
A80: 2001-02-23 | B80: 6075.34 | D80: 27.04847764 | I80: 202.65 | J80: 0 | K80: =SUM(I72:I80)/10 -> 63.432 | L80: 14.475 | M80: 0.2281971245 | N80: 18.5798452 | P80: long | Q80: K A U F E N (go long) | R80: 6075.34 | S80: 0 | U80: 3540.969553
A81: 2001-02-26 | B81: 6189.07 | D81: 29.85581621 | I81: 0 | J81: 113.73 | K81: =SUM(I73:I81)/10 -> 62.734 | L81: 25.848 | M81: 0.412025377 | N81: 29.17974306 | P81: long | Q81: stay long | R81: 0 | S81: 0 | U81: 3597.116324
A82: 2001-02-27 | B82: 6220.48 | D82: 33.24892062 | I82: 0 | J82: 31.41 | K82: =SUM(I74:I82)/10 -> 54.928 | L82: 28.989 | M82: 0.5277636178 | N82: 34.54484789 | P82: long | Q82: stay long | R82: 0 | S82: 0 | U82: 3664.978412
A83: 2001-02-28 | B83: 6208.24 | D83: 34.54537612 | I83: 12.24 | J83: 0 | K83: =SUM(I75:I83)/10 -> 56.152 | L83: 17.809 | M83: 0.3171570024 | N83: 24.07890645 | P83: long | Q83: stay long | R83: 0 | S83: 0 | U83: 3690.907522
A84: 2001-03-01 | B84: 6123.38 | D84: 32.78413394 | I84: 84.86 | J84: 0 | K84: =SUM(I76:I84)/10 -> 49.397 | L84: 17.809 | M84: 0.3605279673 | N84: 26.4991221 | P84: long | Q84: stay long | R84: 0 | S84: 0 | U84: 3655.682679
A85: 2001-03-02 | B85: 6159.02 | D85: 31.41216193 | I85: 0 | J85: 35.64 | K85: =SUM(I77:I85)/10 -> 49.397 | L85: 18.078 | M85: 0.3659736421 | N85: 26.79214524 | P85: long | Q85: stay long | R85: 0 | S85: 0 | U85: 3628.243239
A86: 2001-03-05 | B86: 6216.38 | D86: 36.86056793 | I86: 0 | J86: 57.36 | K86: =SUM(I78:I86)/10 -> 47.333 | L86: 23.814 | M86: 0.5031162191 | N86: 33.47154483 | P86: long | Q86: stay long | R86: 0 | S86: 0 | U86: 3737.211359
A87: 2001-03-06 | B87: 6284.06 | D87: 37.30722454 | I87: 0 | J87: 67.68 | K87: =SUM(I79:I87)/10 -> 36.975 | L87: 30.582 | M87: 0.8270993915 | N87: 45.26843998 | P87: long | Q87: stay long | R87: 0 | S87: 0 | U87: 3746.144491
A88: 2001-03-07 | B88: 6305.64 | D88: 42.47174397 | I88: 0 | J88: 21.58 | K88: =SUM(I80:I88)/10 -> 29.975 | L88: 32.74 | M88: 1.092243536 | N88: 52.20441681 | P88: long | Q88: stay long | R88: 0 | S88: 0 | U88: 3849.434879
A89: 2001-03-08 | B89: 6267.06 | D89: 38.01070724 | I89: 38.58 | J89: 0 | K89: =SUM(I81:I89)/10 -> 13.568 | L89: 32.74 | M89: 2.41303066 | N89: 70.70052691 | P89: long | Q89: stay long | R89: 0 | S89: 0 | U89: 3760.214145
A90: 2001-03-09 | B90: 6204.42 | D90: 36.38051795 | I90: 62.64 | J90: 0 | K90: =SUM(I82:I90)/10 -> 19.832 | L90: 21.367 | M90: 1.077400161 | N90: 51.86290929 | P90: long | Q90: stay long | R90: 0 | S90: 0 | U90: 3727.610359
A91: 2001-03-12 | B91: 6046.56 | D91: 34.2731252 | I91: 157.86 | J91: 0 | K91: =SUM(I83:I91)/10 -> 35.618 | L91: 18.226 | M91: 0.5117075636 | N91: 33.8496397 | P91: long | Q91: stay long | R91: 0 | S91: 0 | U91: 3685.462504
A92: 2001-03-13 | B92: 5962.93 | D92: 26.70366967 | I92: 83.63 | J92: 0 | K92: =SUM(I84:I92)/10 -> 42.757 | L92: 18.226 | M92: 0.4262693828 | N92: 29.88701769 | P92: long | Q92: stay long | R92: 0 | S92: 0 | U92: 3534.073393
A93: 2001-03-14 | B93: 5794.12 | D93: 26.38303169 | I93: 168.81 | J93: 0 | K93: =SUM(I85:I93)/10 -> 51.152 | L93: 18.226 | M93: 0.3563106037 | N93: 26.27057569 | P93: long | Q93: stay long | R93: 0 | S93: 0 | U93: 3527.660634
A94: 2001-03-15 | B94: 5889.95 | D94: 29.62301921 | I94: 0 | J94: 95.83 | K94: =SUM(I86:I94)/10 -> 51.152 | L94: 24.245 | M94: 0.473979512 | N94: 32.15645185 | P94: long | Q94: stay long | R94: 0 | S94: 0 | U94: 3592.460384
A95: 2001-03-16 | B95: 5734.49 | D95: 27.06870307 | I95: 155.46 | J95: 0 | K95: =SUM(I87:I95)/10 -> 66.698 | L95: 18.509 | M95: 0.2775045729 | N95: 21.7223937 | P95: long | Q95: stay long | R95: 0 | S95: 0 | U95: 3541.374061
A96: 2001-03-19 | B96: 5657.29 | D96: 27.53324312 | I96: 77.2 | J96: 0 | K96: =SUM(I88:I96)/10 -> 74.418 | L96: 11.741 | M96: 0.1577709694 | N96: 13.62713123 | P96: long | Q96: stay long | R96: 0 | S96: 0 | U96: 3550.664862
A97: 2001-03-20 | B97: 5782.16 | D97: 34.4277432 | I97: 0 | J97: 124.87 | K97: =SUM(I89:I97)/10 -> 74.418 | L97: 22.07 | M97: 0.2965680346 | N97: 22.87331067 | P97: long | Q97: stay long | R97: 0 | S97: 0 | U97: 3688.554864
A98: 2001-03-21 | B98: 5622.09 | D98: 35.37384233 | I98: 160.07 | J98: 0 | K98: =SUM(I90:I98)/10 -> 86.567 | L98: 22.07 | M98: 0.2549470352 | N98: 20.31536217 | P98: long | Q98: stay long | R98: 0 | S98: 0 | U98: 3707.476847
A99: 2001-03-22 | B99: 5388.02 | D99: 26.01345079 | I99: 234.07 | J99: 0 | K99: =SUM(I91:I99)/10 -> 103.71 | L99: 22.07 | M99: 0.2128049368 | N99: 17.54650978 | P99: long | Q99: stay long | R99: 0 | S99: 0 | U99: 3520.269016
A100: 2001-03-23 | B100: 5544.67 | D100: 31.17552353 | I100: 0 | J100: 156.65 | K100: =SUM(I92:I100)/10 -> 87.924 | L100: 37.735 | M100: 0.4291774715 | N100: 30.02968351 | P100: long | Q100: stay long | R100: 0 | S100: 0 | U100: 3623.510471
A101: 2001-03-26 | B101: 5726.97 | D101: 37.75450488 | I101: 0 | J101: 182.3 | K101: =SUM(I93:I101)/10 -> 79.561 | L101: 55.965 | M101: 0.7034225311 | N101: 41.29465933 | P101: long | Q101: stay long | R101: 0 | S101: 0 | U101: 3755.090098
A102: 2001-03-27 | B102: 5938.21 | D102: 45.57320927 | I102: 0 | J102: 211.24 | K102: =SUM(I94:I102)/10 -> 62.68 | L102: 77.089 | M102: 1.22988194 | N102: 55.15457648 | P102: long | Q102: stay long | R102: 0 | S102: 0 | U102: 3911.464185
A103: 2001-03-28 | B103: 5817.52 | D103: 42.15490783 | I103: 120.69 | J103: 0 | K103: =SUM(I95:I103)/10 -> 74.749 | L103: 67.506 | M103: 0.9031023826 | N103: 47.45421954 | P103: long | Q103: stay long | R103: 0 | S103: 0 | U103: 3843.098157
A104: 2001-03-29 | B104: 5879.3 | D104: 42.27213954 | I104: 0 | J104: 61.78 | K104: =SUM(I96:I104)/10 -> 59.203 | L104: 73.684 | M104: 1.244599091 | N104: 55.44861424 | P104: long | Q104: stay long | R104: 0 | S104: 0 | U104: 3845.442791
A105: 2001-03-30 | B105: 5829.95 | D105: 39.50088088 | I105: 49.35 | J105: 0 | K105: =SUM(I97:I105)/10 -> 56.418 | L105: 73.684 | M105: 1.30603708 | N105: 56.63556287 | P105: long | Q105: stay long | R105: 0 | S105: 0 | U105: 3790.017618
A106: 2001-04-02 | B106: 5760.76 | D106: 37.67362525 | I106: 69.19 | J106: 0 | K106: =SUM(I98:I106)/10 -> 63.337 | L106: 61.197 | M106: 0.9662124824 | N106: 49.14079689 | P106: =IF(D106="","warten",IF(D106>R_RSI_high,"short",IF(D106<R_RSI_low,"long",P105))) -> long | Q106: stay long | R106: 0 | S106: 0 | U106: =IF(D106="",0,D106*20+3000) -> 3753.472505
A107: 2001-04-03 | B107: 5553.46 | D107: 35.00172346 | I107: 207.3 | J107: 0 | K107: =SUM(I99:I107)/10 -> 68.06 | L107: 61.197 | M107: 0.8991625037 | N107: 47.34521148 | P107: long | Q107: =IF(P107=P106,"stay " &P107,IF(P107="long","K A U F E N (go long)","V E R K A U F E N (go short)")) -> stay long | R107: 0 | S107: 0 | U107: 3700.034469
A108: 2001-04-04 | B108: 5597.66 | D108: 37.14763821 | I108: 0 | J108: 44.2 | K108: =SUM(I100:I108)/10 -> 44.653 | L108: 65.617 | M108: 1.469486933 | N108: 59.50575859 | P108: long | Q108: stay long | R108: 0 | S108: 0 | U108: 3742.952764
A109: 2001-04-05 | B109: 5773.34 | D109: 44.25602947 | I109: 0 | J109: 175.68 | K109: =SUM(I101:I109)/10 -> 44.653 | L109: 67.52 | M109: 1.51210445 | N109: 60.192738 | P109: long | Q109: stay long | R109: 0 | S109: 0 | U109: 3885.120589
A110: 2001-04-06 | B110: 5698.88 | D110: 44.42732626 | I110: 74.46 | J110: 0 | K110: =SUM(I102:I110)/10 -> 52.099 | L110: 49.29 | M110: 0.9460834181 | N110: 48.61474124 | P110: long | Q110: stay long | R110: 0 | S110: 0 | U110: 3888.546525
A111: 2001-04-09 | B111: 5781.01 | D111: 49.71281112 | I111: 0 | J111: 82.13 | K111: =SUM(I103:I111)/10 -> 52.099 | L111: 36.379 | M111: 0.6982667614 | N111: 41.11643572 | P111: long | Q111: stay long | R111: 0 | S111: 0 | U111: 3994.256222
A112: 2001-04-10 | B112: 5913.84 | D112: 50.51498834 | I112: 0 | J112: 132.83 | K112: =SUM(I104:I112)/10 -> 40.03 | L112: 49.662 | M112: 1.240619535 | N112: 55.36948669 | P112: long | Q112: stay long | R112: 0 | S112: 0 | U112: 4010.299767
A113: 2001-04-11 | B113: 5951.16 | D113: 54.92134301 | I113: 0 | J113: 37.32 | K113: =SUM(I105:I113)/10 -> 40.03 | L113: 47.216 | M113: 1.179515363 | N113: 54.11824038 | P113: long | Q113: stay long | R113: 0 | S113: 0 | U113: 4098.42686
A114: 2001-04-12 | B114: 6002.3 | D114: 57.93027992 | I114: 0 | J114: 51.14 | K114: =SUM(I106:I114)/10 -> 35.095 | L114: 52.33 | M114: 1.491095598 | N114: 59.8570203 | P114: long | Q114: stay long | R114: 0 | S114: 0 | U114: 4158.605598
A115: 2001-04-13 | B115: 5980.06 | D115: 54.77410452 | I115: =IF(B115<B114,B114-B115,0) -> 22.24 | J115: =IF(B115>B114,B115-B114,0) -> 0 | K115: =SUM(I107:I115)/10 -> 30.4 | L115: 52.33 | M115: =IF(K115=0,0,L115/K115) -> 1.721381579 | N115: =100-(100/(1+M115)) -> 63.25395866 | P115: long | Q115: stay long | R115: =IF(LEFT(Q115,1)="K",B115,0) -> 0 | S115: =IF(LEFT(Q115,1)="V",B115,0) -> 0 | U115: 4095.48209
A116: 2001-04-16 | B116: 5957.82 | D116: 58.67604571 | I116: 22.24 | J116: 0 | K116: =SUM(I108:I116)/10 -> 11.894 | L116: 52.33 | M116: 4.399697326 | N116: 81.48044345 | P116: long | Q116: stay long | R116: 0 | S116: 0 | U116: 4173.520914
A117: 2001-04-17 | B117: 5935.58 | D117: 65.88991166 | I117: 22.24 | J117: 0 | K117: =SUM(I109:I117)/10 -> 14.118 | L117: 47.91 | M117: 3.393540161 | N117: 77.23931128 | P117: long | Q117: stay long | R117: 0 | S117: 0 | U117: 4317.798233
A118: 2001-04-18 | B118: 6164.88 | D118: 67.26998324 | I118: 0 | J118: 229.3 | K118: =SUM(I110:I118)/10 -> 14.118 | L118: 53.272 | M118: 3.773339 | N118: 79.0503042 | P118: long | Q118: stay long | R118: 0 | S118: 0 | U118: 4345.399665
A119: 2001-04-19 | B119: 6181.91 | D119: 63.95213327 | I119: 0 | J119: 17.03 | K119: =SUM(I111:I119)/10 -> 6.672 | L119: 54.975 | M119: 8.239658273 | N119: 89.17708891 | P119: long | Q119: stay long | R119: 0 | S119: 0 | U119: 4279.042665
A120: 2001-04-20 | B120: 6127.97 | D120: 56.44101394 | I120: 53.94 | J120: 0 | K120: =SUM(I112:I120)/10 -> 12.066 | L120: 46.762 | M120: 3.875517984 | N120: 79.48935881 | P120: long | Q120: stay long | R120: 0 | S120: 0 | U120: 4128.820279
A121: 2001-04-23 | B121: 6051.48 | D121: 58.18694624 | I121: 76.49 | J121: 0 | K121: =SUM(I113:I121)/10 -> 19.715 | L121: 33.479 | M121: 1.698148618 | N121: 62.93754935 | P121: long | Q121: stay long | R121: 0 | S121: 0 | U121: 4163.738925
A122: 2001-04-24 | B122: 6124.57 | D122: 58.51531416 | I122: 0 | J122: 73.09 | K122: =SUM(I114:I122)/10 -> 19.715 | L122: 37.056 | M122: 1.879584073 | N122: 65.2727625 | P122: long | Q122: stay long | R122: 0 | S122: 0 | U122: 4170.306283
A123: 2001-04-25 | B123: 6115.19 | D123: 60.18568776 | I123: 9.38 | J123: 0 | K123: =SUM(I115:I123)/10 -> 20.653 | L123: 31.942 | M123: 1.546603399 | N123: 60.73200875 | P123: long | Q123: stay long | R123: 0 | S123: 0 | U123: 4203.713755
A124: 2001-04-26 | B124: 6123.66 | D124: 63.54630155 | I124: 0 | J124: 8.47 | K124: =SUM(I116:I124)/10 -> 18.429 | L124: 32.789 | M124: 1.779206685 | N124: 64.01850912 | P124: long | Q124: stay long | R124: 0 | S124: 0 | U124: 4270.926031
A125: 2001-04-27 | B125: 6175.24 | D125: 76.26292492 | I125: 0 | J125: 51.58 | K125: =SUM(I117:I125)/10 -> 16.205 | L125: 37.947 | M125: 2.341684665 | N125: 70.07497415 | P125: short | Q125: V E R K A U F E N (go short) | R125: 0 | S125: 6175.24 | U125: 4525.258498
A126: 2001-04-30 | B126: 6264.51 | D126: 77.13353352 | I126: 0 | J126: 89.27 | K126: =SUM(I118:I126)/10 -> 13.981 | L126: 46.874 | M126: 3.35269294 | N126: 77.02571687 | P126: short | Q126: stay short | R126: 0 | S126: 0 | U126: 4542.67067
A127: 2001-05-01 | B127: 6239.18 | D127: 71.59706253 | I127: 25.33 | J127: 0 | K127: =SUM(I119:I127)/10 -> 16.514 | L127: 23.944 | M127: 1.449921279 | N127: 59.18236196 | P127: short | Q127: stay short | R127: 0 | S127: 0 | U127: 4431.941251
A128: 2001-05-02 | B128: 6213.84 | D128: 75.01360068 | I128: 25.34 | J128: 0 | K128: =SUM(I120:I128)/10 -> 19.048 | L128: 22.241 | M128: 1.167629147 | N128: 53.86664729 | P128: short | Q128: stay short | R128: 0 | S128: 0 | U128: 4500.272014
A129: 2001-05-03 | B129: 6089.17 | D129: 64.37447523 | I129: 124.67 | J129: 0 | K129: =SUM(I121:I129)/10 -> 26.121 | L129: 22.241 | M129: 0.8514605107 | N129: 45.98858608 | P129: short | Q129: stay short | R129: 0 | S129: 0 | U129: 4287.489505
A130: 2001-05-04 | B130: 6138.28 | D130: 61.35623065 | I130: 0 | J130: 49.11 | K130: =SUM(I122:I130)/10 -> 18.472 | L130: 27.152 | M130: 1.46990039 | N130: 59.51253726 | P130: short | Q130: stay short | R130: 0 | S130: 0 | U130: 4227.124613
A131: 2001-05-07 | B131: 6122.62 | D131: 58.86996648 | I131: 15.66 | J131: 0 | K131: =SUM(I123:I131)/10 -> 20.038 | L131: 19.843 | M131: 0.9902684899 | N131: 49.75552268 | P131: short | Q131: stay short | R131: 0 | S131: 0 | U131: 4177.39933
A132: 2001-05-08 | B132: 6108.72 | D132: 55.72593836 | I132: 13.9 | J132: 0 | K132: =SUM(I124:I132)/10 -> 20.49 | L132: 19.843 | M132: 0.9684236213 | N132: 49.19792726 | P132: short | Q132: stay short | R132: 0 | S132: 0 | U132: 4114.518767
A133: 2001-05-09 | B133: 6063.94 | D133: 54.40629531 | I133: 44.78 | J133: 0 | K133: =SUM(I125:I133)/10 -> 24.968 | L133: 18.996 | M133: 0.7608138417 | N133: 43.20807934 | P133: short | Q133: stay short | R133: 0 | S133: 0 | U133: 4088.125906
A134: 2001-05-10 | B134: 6165.18 | D134: 60.05801207 | I134: 0 | J134: 101.24 | K134: =SUM(I126:I134)/10 -> 24.968 | L134: 23.962 | M134: 0.9597084268 | N134: 48.97200082 | P134: short | Q134: stay short | R134: 0 | S134: 0 | U134: 4201.160241
A135: 2001-05-11 | B135: 6141.02 | D135: 59.94635629 | I135: 24.16 | J135: 0 | K135: =SUM(I127:I135)/10 -> 27.384 | L135: 15.035 | M135: 0.5490432369 | N135: 35.44402273 | P135: short | Q135: stay short | R135: 0 | S135: 0 | U135: 4198.927126
A136: 2001-05-14 | B136: 6064.68 | D136: 44.30539453 | I136: 76.34 | J136: 0 | K136: =SUM(I128:I136)/10 -> 32.485 | L136: 15.035 | M136: 0.462828998 | N136: 31.63930976 | P136: short | Q136: stay short | R136: 0 | S136: 0 | U136: 3886.107891
A137: 2001-05-15 | B137: 6070.38 | D137: 43.5787898 | I137: 0 | J137: 5.7 | K137: =SUM(I129:I137)/10 -> 29.951 | L137: 15.605 | M137: 0.5210176622 | N137: 34.25454386 | P137: short | Q137: stay short | R137: 0 | S137: 0 | U137: 3871.575796
A138: 2001-05-16 | B138: 6148.44 | D138: 51.14668878 | I138: 0 | J138: 78.06 | K138: =SUM(I130:I138)/10 -> 17.484 | L138: 23.411 | M138: 1.338995653 | N138: 57.24660716 | P138: short | Q138: stay short | R138: 0 | S138: 0 | U138: 4022.933776
A139: 2001-05-17 | B139: 6173.81 | D139: 57.26899994 | I139: 0 | J139: 25.37 | K139: =SUM(I131:I139)/10 -> 17.484 | L139: 21.037 | M139: 1.203214367 | N139: 54.6117702 | P139: short | Q139: stay short | R139: 0 | S139: 0 | U139: 4145.379999
A140: 2001-05-18 | B140: 6186.87 | D140: 53.98633257 | I140: 0 | J140: 13.06 | K140: =SUM(I132:I140)/10 -> 15.918 | L140: 22.343 | M140: 1.403631109 | N140: 58.39627819 | P140: short | Q140: stay short | R140: 0 | S140: 0 | U140: 4079.726651
A141: 2001-05-21 | B141: 6249.87 | D141: 58.06428435 | I141: 0 | J141: 63 | K141: =SUM(I133:I141)/10 -> 14.528 | L141: 28.643 | M141: 1.971572137 | N141: 66.34777976 | P141: short | Q141: stay short | R141: 0 | S141: 0 | U141: 4161.285687
A142: 2001-05-22 | B142: 6270.59 | D142: 58.67058504 | I142: 0 | J142: 20.72 | K142: =SUM(I134:I142)/10 -> 10.05 | L142: 30.715 | M142: 3.056218905 | N142: 75.34649822 | P142: short | Q142: stay short | R142: 0 | S142: 0 | U142: 4173.411701
A143: 2001-05-23 | B143: 6215.25 | D143: 52.3506257 | I143: 55.34 | J143: 0 | K143: =SUM(I135:I143)/10 -> 15.584 | L143: 20.591 | M143: 1.321291068 | N143: 56.92052522 | P143: short | Q143: stay short | R143: 0 | S143: 0 | U143: 4047.012514
A144: 2001-05-24 | B144: 6278.9 | D144: 50.87166689 | I144: 0 | J144: 63.65 | K144: =SUM(I136:I144)/10 -> 13.168 | L144: 26.956 | M144: 2.04708384 | N144: 67.18173662 | P144: short | Q144: stay short | R144: 0 | S144: 0 | U144: 4017.433338
A145: 2001-05-25 | B145: 6223.57 | D145: 49.08759337 | I145: 55.33 | J145: 0 | K145: =SUM(I137:I145)/10 -> 11.067 | L145: 26.956 | M145: 2.435709768 | N145: 70.89393262 | P145: short | Q145: stay short | R145: 0 | S145: 0 | U145: 3981.751867
A146: 2001-05-28 | B146: 6216.83 | D146: 50.17865038 | I146: 6.74 | J146: 0 | K146: =SUM(I138:I146)/10 -> 11.741 | L146: 26.386 | M146: 2.247338387 | N146: 69.20554987 | P146: short | Q146: stay short | R146: 0 | S146: 0 | U146: 4003.573008
A147: 2001-05-29 | B147: 6120.33 | D147: 51.92664408 | I147: 96.5 | J147: 0 | K147: =SUM(I139:I147)/10 -> 21.391 | L147: 18.58 | M147: 0.8685895938 | N147: 46.48370068 | P147: short | Q147: stay short | R147: 0 | S147: 0 | U147: 4038.532882
A148: 2001-05-30 | B148: 6041.22 | D148: 44.21338802 | I148: 79.11 | J148: 0 | K148: =SUM(I140:I148)/10 -> 29.302 | L148: 16.043 | M148: 0.5475052897 | N148: 35.37986548 | P148: short | Q148: stay short | R148: 0 | S148: 0 | U148: 3884.26776
A149: 2001-05-31 | B149: 6123.26 | D149: 50.03535755 | I149: 0 | J149: 82.04 | K149: =SUM(I141:I149)/10 -> 29.302 | L149: 22.941 | M149: 0.7829158419 | N149: 43.91210306 | P149: short | Q149: stay short | R149: 0 | S149: 0 | U149: 4000.707151
A150: 2001-06-01 | B150: 6125.17 | D150: 50.92100106 | I150: 0 | J150: 1.91 | K150: =SUM(I142:I150)/10 -> 29.302 | L150: 16.832 | M150: 0.5744317794 | N150: 36.48502189 | P150: short | Q150: stay short | R150: 0 | S150: 0 | U150: 4018.420021
A151: 2001-06-04 | B151: 6177.74 | D151: 56.31632698 | I151: 0 | J151: 52.57 | K151: =SUM(I143:I151)/10 -> 29.302 | L151: 20.017 | M151: 0.6831274316 | N151: 40.58679211 | P151: short | Q151: stay short | R151: 0 | S151: 0 | U151: 4126.32654
A152: 2001-06-05 | B152: 6242.13 | D152: 54.45317654 | I152: 0 | J152: 64.39 | K152: =SUM(I144:I152)/10 -> 23.768 | L152: 26.456 | M152: 1.113093235 | N152: 52.67601147 | P152: short | Q152: stay short | R152: 0 | S152: 0 | U152: 4089.063531
A153: 2001-06-06 | B153: 6192.44 | D153: 52.89032287 | I153: 49.69 | J153: 0 | K153: =SUM(I145:I153)/10 -> 28.737 | L153: 20.091 | M153: 0.6991335212 | N153: 41.14647333 | P153: short | Q153: stay short | R153: 0 | S153: 0 | U153: 4057.806457
A154: 2001-06-07 | B154: 6184.25 | D154: 57.27869292 | I154: 8.19 | J154: 0 | K154: =SUM(I146:I154)/10 -> 24.023 | L154: 20.091 | M154: 0.8363235233 | N154: 45.54336492 | P154: short | Q154: stay short | R154: 0 | S154: 0 | U154: 4145.573858
A155: 2001-06-08 | B155: 6187.21 | D155: 57.13570233 | I155: 0 | J155: 2.96 | K155: =SUM(I147:I155)/10 -> 23.349 | L155: 20.387 | M155: 0.8731423187 | N155: 46.61377355 | P155: short | Q155: stay short | R155: 0 | S155: 0 | U155: 4142.714047
A156: 2001-06-11 | B156: 6162.74 | D156: 50.93459166 | I156: 24.47 | J156: 0 | K156: =SUM(I148:I156)/10 -> 16.146 | L156: 20.387 | M156: 1.262665676 | N156: 55.80434128 | P156: short | Q156: stay short | R156: 0 | S156: 0 | U156: 4018.691833
A157: 2001-06-12 | B157: 6059.15 | D157: 43.2013851 | I157: 103.59 | J157: 0 | K157: =SUM(I149:I157)/10 -> 18.594 | L157: 20.387 | M157: 1.096428956 | N157: 52.29983838 | P157: short | Q157: stay short | R157: 0 | S157: 0 | U157: 3864.027702
A158: 2001-06-13 | B158: 6111.94 | D158: 45.75703009 | I158: 0 | J158: 52.79 | K158: =SUM(I150:I158)/10 -> 18.594 | L158: 17.462 | M158: 0.9391201463 | N158: 48.43021966 | P158: short | Q158: stay short | R158: 0 | S158: 0 | U158: 3915.140602
A159: 2001-06-14 | B159: 6031.27 | D159: 37.86445496 | I159: 80.67 | J159: 0 | K159: =SUM(I151:I159)/10 -> 26.661 | L159: 17.271 | M159: 0.6478001575 | N159: 39.31302923 | P159: short | Q159: stay short | R159: 0 | S159: 0 | U159: 3757.289099
A160: 2001-06-15 | B160: 5915.18 | D160: 32.15866992 | I160: 116.09 | J160: 0 | K160: =SUM(I152:I160)/10 -> 38.27 | L160: 12.014 | M160: 0.3139273582 | N160: 23.89229178 | P160: short | Q160: stay short | R160: 0 | S160: 0 | U160: 3643.173398
A161: 2001-06-18 | B161: 5869.04 | D161: 32.45847816 | I161: 46.14 | J161: 0 | K161: =SUM(I153:I161)/10 -> 42.884 | L161: 5.575 | M161: 0.1300018655 | N161: 11.50457087 | P161: short | Q161: stay short | R161: 0 | S161: 0 | U161: 3649.169563
A162: 2001-06-19 | B162: 5922.53 | D162: 31.75586431 | I162: 0 | J162: 53.49 | K162: =SUM(I154:I162)/10 -> 37.915 | L162: 10.924 | M162: 0.288118159 | N162: 22.36737034 | P162: short | Q162: stay short | R162: 0 | S162: 0 | U162: 3635.117286
A163: 2001-06-20 | B163: 5876.04 | D163: 32.04591715 | I163: 46.49 | J163: 0 | K163: =SUM(I155:I163)/10 -> 41.745 | L163: 10.924 | M163: 0.261684034 | N163: 20.74085325 | P163: short | Q163: stay short | R163: 0 | S163: 0 | U163: 3640.918343
A164: 2001-06-21 | B164: 5926.38 | D164: 35.64161633 | I164: 0 | J164: 50.34 | K164: =SUM(I156:I164)/10 -> 41.745 | L164: 15.662 | M164: 0.3751826566 | N164: 27.28238717 | P164: short | Q164: stay short | R164: 0 | S164: 0 | U164: 3712.832327
A165: 2001-06-22 | B165: 5941.77 | D165: 40.40330209 | I165: 0 | J165: 15.39 | K165: =SUM(I157:I165)/10 -> 39.298 | L165: 17.201 | M165: 0.4377067535 | N165: 30.44478663 | P165: short | Q165: stay short | R165: 0 | S165: 0 | U165: 3808.066042
A166: 2001-06-25 | B166: 5902.32 | D166: 42.20241169 | I166: 39.45 | J166: 0 | K166: =SUM(I158:I166)/10 -> 32.884 | L166: 17.201 | M166: 0.5230811337 | N166: 34.34361585 | P166: short | Q166: stay short | R166: 0 | S166: 0 | U166: 3844.048234
A167: 2001-06-26 | B167: 5847.79 | D167: 34.04275039 | I167: 54.53 | J167: 0 | K167: =SUM(I159:I167)/10 -> 38.337 | L167: 11.922 | M167: 0.3109789498 | N167: 23.72112457 | P167: short | Q167: stay short | R167: 0 | S167: 0 | U167: 3680.855008
A168: 2001-06-27 | B168: 5833.1 | D168: 33.32800566 | I168: 14.69 | J168: 0 | K168: =SUM(I160:I168)/10 -> 31.739 | L168: 11.922 | M168: 0.3756262012 | N168: 27.30583358 | P168: short | Q168: stay short | R168: 0 | S168: 0 | U168: 3666.560113
A169: 2001-06-28 | B169: 5971.77 | D169: 39.29503238 | I169: 0 | J169: 138.67 | K169: =SUM(I161:I169)/10 -> 20.13 | L169: 25.789 | M169: 1.281122702 | N169: 56.16193732 | P169: short | Q169: stay short | R169: 0 | S169: 0 | U169: 3785.900648
A170: 2001-06-29 | B170: 6058.38 | D170: 40.66548133 | I170: 0 | J170: 86.61 | K170: =SUM(I162:I170)/10 -> 15.516 | L170: 34.45 | M170: 2.220288734 | N170: 68.94688388 | P170: =IF(D170="","warten",IF(D170>R_RSI_high,"short",IF(D170<R_RSI_low,"long",P169))) -> short | Q170: stay short | R170: 0 | S170: 0 | U170: =IF(D170="",0,D170*20+3000) -> 3813.309627
A171: 2001-07-02 | B171: 6109.5 | D171: 45.79275221 | I171: 0 | J171: 51.12 | K171: =SUM(I163:I171)/10 -> 15.516 | L171: 34.213 | M171: 2.205014179 | N171: 68.79888998 | P171: short | Q171: =IF(P171=P170,"stay " &P171,IF(P171="long","K A U F E N (go long)","V E R K A U F E N (go short)")) -> stay short | R171: 0 | S171: 0 | U171: 3915.855044
A172: 2001-07-03 | B172: 6056.84 | D172: 43.81594913 | I172: 52.66 | J172: 0 | K172: =SUM(I164:I172)/10 -> 16.133 | L172: 34.213 | M172: 2.120684312 | N172: 67.95574624 | P172: short | Q172: stay short | R172: 0 | S172: 0 | U172: 3876.318983
A173: 2001-07-04 | B173: 6015.72 | D173: 41.97377166 | I173: 41.12 | J173: 0 | K173: =SUM(I165:I173)/10 -> 20.245 | L173: 29.179 | M173: 1.441294147 | N173: 59.03811913 | P173: short | Q173: stay short | R173: 0 | S173: 0 | U173: 3839.475433
A174: 2001-07-05 | B174: 5999.19 | D174: 42.28806926 | I174: 16.53 | J174: 0 | K174: =SUM(I166:I174)/10 -> 21.898 | L174: 27.64 | M174: 1.262215727 | N174: 55.79555089 | P174: short | Q174: stay short | R174: 0 | S174: 0 | U174: 3845.761385
A175: 2001-07-06 | B175: 5862.1 | D175: 40.9929882 | I175: 137.09 | J175: 0 | K175: =SUM(I167:I175)/10 -> 31.662 | L175: 27.64 | M175: 0.8729707536 | N175: 46.60888334 | P175: short | Q175: stay short | R175: 0 | S175: 0 | U175: 3819.859764
A176: 2001-07-09 | B176: 5869.86 | D176: 38.45963159 | I176: 0 | J176: 7.76 | K176: =SUM(I168:I176)/10 -> 26.209 | L176: 28.416 | M176: 1.084207715 | N176: 52.0201373 | P176: short | Q176: stay short | R176: 0 | S176: 0 | U176: 3769.192632
A177: 2001-07-10 | B177: 5816.32 | D177: 39.48087031 | I177: 53.54 | J177: 0 | K177: =SUM(I169:I177)/10 -> 30.094 | L177: 28.416 | M177: 0.944241377 | N177: 48.56605708 | P177: short | Q177: stay short | R177: 0 | S177: 0 | U177: 3789.617406
A178: 2001-07-11 | B178: 5801.8 | D178: 43.83898102 | I178: 14.52 | J178: 0 | K178: =SUM(I170:I178)/10 -> 31.546 | L178: 14.549 | M178: 0.4611995182 | N178: 31.56307626 | P178: short | Q178: stay short | R178: 0 | S178: 0 | U178: 3876.77962
A179: 2001-07-12 | B179: 5889.88 | D179: 51.08307001 | I179: =IF(B179<B178,B178-B179,0) -> 0 | J179: =IF(B179>B178,B179-B178,0) -> 88.08 | K179: =SUM(I171:I179)/10 -> 31.546 | L179: 14.696 | M179: =IF(K179=0,0,L179/K179) -> 0.46585938 | N179: =100-(100/(1+M179)) -> 31.78063233 | P179: short | Q179: stay short | R179: =IF(LEFT(Q179,1)="K",B179,0) -> 0 | S179: =IF(LEFT(Q179,1)="V",B179,0) -> 0 | U179: 4021.6614
A180: 2001-07-13 | B180: 5928.01 | D180: 50.28942031 | I180: 0 | J180: 38.13 | K180: =SUM(I172:I180)/10 -> 31.546 | L180: 13.397 | M180: 0.4246814176 | N180: 29.80886901 | P180: short | Q180: stay short | R180: 0 | S180: 0 | U180: 4005.788406
A181: 2001-07-16 | B181: 5853.76 | D181: 48.8568262 | I181: 74.25 | J181: 0 | K181: =SUM(I173:I181)/10 -> 33.705 | L181: 13.397 | M181: 0.397478119 | N181: 28.44252898 | P181: short | Q181: stay short | R181: 0 | S181: 0 | U181: 3977.136524
A182: 2001-07-17 | B182: 5846.66 | D182: 45.71968558 | I182: 7.1 | J182: 0 | K182: =SUM(I174:I182)/10 -> 30.303 | L182: 13.397 | M182: 0.4421014421 | N182: 30.65675057 | P182: short | Q182: stay short | R182: 0 | S182: 0 | U182: 3914.393712
A183: 2001-07-18 | B183: 5728.37 | D183: 39.68224805 | I183: 118.29 | J183: 0 | K183: =SUM(I175:I183)/10 -> 40.479 | L183: 13.397 | M183: 0.3309617332 | N183: 24.86635979 | P183: short | Q183: stay short | R183: 0 | S183: 0 | U183: 3793.644961
A184: 2001-07-19 | B184: 5829.69 | D184: 46.68661782 | I184: 0 | J184: 101.32 | K184: =SUM(I176:I184)/10 -> 26.77 | L184: 23.529 | M184: 0.8789316399 | N184: 46.77826597 | P184: short | Q184: stay short | R184: 0 | S184: 0 | U184: 3933.732356
A185: 2001-07-20 | B185: 5764.06 | D185: 46.21853294 | I185: 65.63 | J185: 0 | K185: =SUM(I177:I185)/10 -> 33.333 | L185: 22.753 | M185: 0.682596826 | N185: 40.5680562 | P185: short | Q185: stay short | R185: 0 | S185: 0 | U185: 3924.370659
A186: 2001-07-23 | B186: 5791.73 | D186: 48.1532734 | I186: 0 | J186: 27.67 | K186: =SUM(I178:I186)/10 -> 27.979 | L186: 25.52 | M186: 0.9121126559 | N186: 47.7018262 | P186: short | Q186: stay short | R186: 0 | S186: 0 | U186: 3963.065468
A187: 2001-07-24 | B187: 5663.26 | D187: 36.10177585 | I187: 128.47 | J187: 0 | K187: =SUM(I179:I187)/10 -> 39.374 | L187: 25.52 | M187: 0.6481434449 | N187: 39.32566955 | P187: short | Q187: stay short | R187: 0 | S187: 0 | U187: 3722.035517
A188: 2001-07-25 | B188: 5582.76 | D188: 28.45494573 | I188: 80.5 | J188: 0 | K188: =SUM(I180:I188)/10 -> 47.424 | L188: 16.712 | M188: 0.3523954116 | N188: 26.0571286 | P188: long | Q188: K A U F E N (go long) | R188: 5582.76 | S188: 0 | U188: 3569.098915
A189: 2001-07-26 | B189: 5675.76 | D189: 31.07030009 | I189: 0 | J189: 93 | K189: =SUM(I181:I189)/10 -> 47.424 | L189: 22.199 | M189: 0.4680963225 | N189: 31.88457837 | P189: long | Q189: stay long | R189: 0 | S189: 0 | U189: 3621.406002
A190: 2001-07-27 | B190: 5754.86 | D190: 37.11799335 | I190: 0 | J190: 79.1 | K190: =SUM(I182:I190)/10 -> 39.999 | L190: 30.109 | M190: 0.7527438186 | N190: 42.94659668 | P190: long | Q190: stay long | R190: 0 | S190: 0 | U190: 3742.359867
A191: 2001-07-30 | B191: 5792.19 | D191: 40.43361779 | I191: 0 | J191: 37.33 | K191: =SUM(I183:I191)/10 -> 39.289 | L191: 33.842 | M191: 0.8613606862 | N191: 46.27586113 | P191: long | Q191: stay long | R191: 0 | S191: 0 | U191: 3808.672356
A192: 2001-07-31 | B192: 5861.19 | D192: 44.34787595 | I192: 0 | J192: 69 | K192: =SUM(I184:I192)/10 -> 27.46 | L192: 40.742 | M192: 1.483685361 | N192: 59.73725111 | P192: long | Q192: stay long | R192: 0 | S192: 0 | U192: 3886.957519
A193: 2001-08-01 | B193: 5835.23 | D193: 48.78925787 | I193: 25.96 | J193: 0 | K193: =SUM(I185:I193)/10 -> 30.056 | L193: 30.61 | M193: 1.01843226 | N193: 50.45659842 | P193: long | Q193: stay long | R193: 0 | S193: 0 | U193: 3975.785157
A194: 2001-08-02 | B194: 5777.28 | D194: 46.00893227 | I194: 57.95 | J194: 0 | K194: =SUM(I186:I194)/10 -> 29.288 | L194: 30.61 | M194: 1.04513794 | N194: 51.10354269 | P194: long | Q194: stay long | R194: 0 | S194: 0 | U194: 3920.178645
A195: 2001-08-03 | B195: 5735.88 | D195: 46.4955999 | I195: 41.4 | J195: 0 | K195: =SUM(I187:I195)/10 -> 33.428 | L195: 27.843 | M195: 0.8329244944 | N195: 45.44237894 | P195: long | Q195: stay long | R195: 0 | S195: 0 | U195: 3929.911998
A196: 2001-08-06 | B196: 5746.04 | D196: 47.56153025 | I196: 0 | J196: 10.16 | K196: =SUM(I188:I196)/10 -> 20.581 | L196: 28.859 | M196: 1.402215636 | N196: 58.37176375 | P196: long | Q196: stay long | R196: 0 | S196: 0 | U196: 3951.230605
A197: 2001-08-07 | B197: 5752.51 | D197: 43.53084117 | I197: 0 | J197: 6.47 | K197: =SUM(I189:I197)/10 -> 12.531 | L197: 29.506 | M197: 2.354640492 | N197: 70.19054642 | P197: long | Q197: stay long | R197: 0 | S197: 0 | U197: 3870.616823
A198: 2001-08-08 | B198: 5614.51 | D198: 36.50568182 | I198: 138 | J198: 0 | K198: =SUM(I190:I198)/10 -> 26.331 | L198: 20.206 | M198: 0.7673844518 | N198: 43.41921482 | P198: long | Q198: stay long | R198: 0 | S198: 0 | U198: 3730.113636
A199: 2001-08-09 | B199: 5512.28 | D199: 35.64703509 | I199: 102.23 | J199: 0 | K199: =SUM(I191:I199)/10 -> 36.554 | L199: 12.296 | M199: 0.3363790556 | N199: 25.17093142 | P199: long | Q199: stay long | R199: 0 | S199: 0 | U199: 3712.940702
A200: 2001-08-10 | B200: 5433.49 | D200: 33.6208742 | I200: 78.79 | J200: 0 | K200: =SUM(I192:I200)/10 -> 44.433 | L200: 8.563 | M200: 0.1927171247 | N200: 16.15782323 | P200: long | Q200: stay long | R200: 0 | S200: 0 | U200: 3672.417484
A201: 2001-08-13 | B201: 5453.77 | D201: 38.19696371 | I201: 0 | J201: 20.28 | K201: =SUM(I193:I201)/10 -> 44.433 | L201: 3.691 | M201: 0.08306889024 | N201: 7.669769761 | P201: long | Q201: stay long | R201: 0 | S201: 0 | U201: 3763.939274
A202: 2001-08-14 | B202: 5520.71 | D202: 36.31475445 | I202: 0 | J202: 66.94 | K202: =SUM(I194:I202)/10 -> 41.837 | L202: 10.385 | M202: 0.2482252552 | N202: 19.88625484 | P202: long | Q202: stay long | R202: 0 | S202: 0 | U202: 3726.295089
A203: 2001-08-15 | B203: 5455.44 | D203: 36.32633892 | I203: 65.27 | J203: 0 | K203: =SUM(I195:I203)/10 -> 42.569 | L203: 10.385 | M203: 0.24395687 | N203: 19.6113608 | P203: long | Q203: stay long | R203: 0 | S203: 0 | U203: 3726.526778
A204: 2001-08-16 | B204: 5361.92 | D204: 32.00683205 | I204: 93.52 | J204: 0 | K204: =SUM(I196:I204)/10 -> 47.781 | L204: 10.385 | M204: 0.2173458069 | N204: 17.85407283 | P204: long | Q204: stay long | R204: 0 | S204: 0 | U204: 3640.136641
A205: 2001-08-17 | B205: 5222.12 | D205: 31.70606287 | I205: 139.8 | J205: 0 | K205: =SUM(I197:I205)/10 -> 61.761 | L205: 9.369 | M205: 0.1516976733 | N205: 13.17165753 | P205: long | Q205: stay long | R205: 0 | S205: 0 | U205: 3634.121257
A206: 2001-08-20 | B206: 5207.83 | D206: 33.5483418 | I206: 14.29 | J206: 0 | K206: =SUM(I198:I206)/10 -> 63.19 | L206: 8.722 | M206: 0.138028169 | N206: 12.12871287 | P206: long | Q206: stay long | R206: 0 | S206: 0 | U206: 3670.966836
A207: 2001-08-21 | B207: 5216.11 | D207: 28.21088958 | I207: 0 | J207: 8.28 | K207: =SUM(I199:I207)/10 -> 49.39 | L207: 9.55 | M207: 0.1933589796 | N207: 16.20291822 | P207: long | Q207: stay long | R207: 0 | S207: 0 | U207: 3564.217792
A208: 2001-08-22 | B208: 5220.21 | D208: 22.71553528 | I208: 0 | J208: 4.1 | K208: =SUM(I200:I208)/10 -> 39.167 | L208: 9.96 | M208: 0.2542957081 | N208: 20.27398376 | P208: long | Q208: stay long | R208: 0 | S208: 0 | U208: 3454.310706
A209: 2001-08-23 | B209: 5254.04 | D209: 22.43846477 | I209: 0 | J209: 33.83 | K209: =SUM(I201:I209)/10 -> 31.288 | L209: 13.343 | M209: 0.4264574278 | N209: 29.89626045 | P209: long | Q209: stay long | R209: 0 | S209: 0 | U209: 3448.769295
A210: 2001-08-24 | B210: 5387.5 | D210: 27.24241638 | I210: 0 | J210: 133.46 | K210: =SUM(I202:I210)/10 -> 31.288 | L210: 24.661 | M210: 0.7881935566 | N210: 44.07764214 | P210: long | Q210: stay long | R210: 0 | S210: 0 | U210: 3544.848328
A211: 2001-08-27 | B211: 5406.47 | D211: 29.26170991 | I211: 0 | J211: 18.97 | K211: =SUM(I203:I211)/10 -> 31.288 | L211: 19.864 | M211: 0.6348759908 | N211: 38.8332812 | P211: long | Q211: stay long | R211: 0 | S211: 0 | U211: 3585.234198
A212: 2001-08-28 | B212: 5308.78 | D212: 28.17844767 | I212: 97.69 | J212: 0 | K212: =SUM(I204:I212)/10 -> 34.53 | L212: 19.864 | M212: 0.575267883 | N212: 36.51873368 | P212: long | Q212: stay long | R212: 0 | S212: 0 | U212: 3563.568953
A213: 2001-08-29 | B213: 5305 | D213: 29.20182264 | I213: 3.78 | J213: 0 | K213: =SUM(I205:I213)/10 -> 25.556 | L213: 19.864 | M213: 0.7772734387 | N213: 43.73403787 | P213: long | Q213: stay long | R213: 0 | S213: 0 | U213: 3584.036453
A214: 2001-08-30 | B214: 5162.4 | D214: 25.02182659 | I214: 142.6 | J214: 0 | K214: =SUM(I206:I214)/10 -> 25.836 | L214: 19.864 | M214: 0.7688496671 | N214: 43.46608315 | P214: long | Q214: stay long | R214: 0 | S214: 0 | U214: 3500.436532
A215: 2001-08-31 | B215: 5188.17 | D215: 26.2403166 | I215: 0 | J215: 25.77 | K215: =SUM(I207:I215)/10 -> 24.407 | L215: 22.441 | M215: 0.9194493383 | N215: 47.90172473 | P215: long | Q215: stay long | R215: 0 | S215: 0 | U215: 3524.806332
A216: 2001-09-03 | B216: 5094.1 | D216: 27.24824469 | I216: 94.07 | J216: 0 | K216: =SUM(I208:I216)/10 -> 33.814 | L216: 21.613 | M216: 0.6391731236 | N216: 38.99363126 | P216: long | Q216: stay long | R216: 0 | S216: 0 | U216: 3544.964894
A217: 2001-09-04 | B217: 5208.1 | D217: 36.83704909 | I217: 0 | J217: 114 | K217: =SUM(I209:I217)/10 -> 33.814 | L217: 32.603 | M217: 0.9641864317 | N217: 49.08833582 | P217: long | Q217: stay long | R217: 0 | S217: 0 | U217: 3736.740982
A218: 2001-09-05 | B218: 5048.08 | D218: 34.41742745 | I218: 160.02 | J218: 0 | K218: =SUM(I210:I218)/10 -> 49.816 | L218: 29.22 | M218: 0.5865585354 | N218: 36.97049446 | P218: long | Q218: stay long | R218: 0 | S218: 0 | U218: 3688.348549
A219: 2001-09-06 | B219: 4875.37 | D219: 29.18076452 | I219: 172.71 | J219: 0 | K219: =SUM(I211:I219)/10 -> 67.087 | L219: 15.874 | M219: 0.2366181227 | N219: 19.13429202 | P219: long | Q219: stay long | R219: 0 | S219: 0 | U219: 3583.61529
A220: 2001-09-07 | B220: 4730.67 | D220: 23.070368 | I220: 144.7 | J220: 0 | K220: =SUM(I212:I220)/10 -> 81.557 | L220: 13.977 | M220: 0.1713770737 | N220: 14.63039337 | P220: long | Q220: stay long | R220: 0 | S220: 0 | U220: 3461.40736
A221: 2001-09-10 | B221: 4670.13 | D221: 23.14500079 | I221: 60.54 | J221: 0 | K221: =SUM(I213:I221)/10 -> 77.842 | L221: 13.977 | M221: 0.1795560237 | N221: 15.2223396 | P221: long | Q221: stay long | R221: 0 | S221: 0 | U221: 3462.900016
A222: 2001-09-11 | B222: 4519.85 | D222: 22.28008612 | I222: 150.28 | J222: 0 | K222: =SUM(I214:I222)/10 -> 92.492 | L222: 13.977 | M222: 0.1511157722 | N222: 13.12776489 | P222: long | Q222: stay long | R222: 0 | S222: 0 | U222: 3445.601722
A223: 2001-09-12 | B223: 4369.57 | D223: 22.12741194 | I223: 150.28 | J223: 0 | K223: =SUM(I215:I223)/10 -> 93.26 | L223: 13.977 | M223: 0.1498713275 | N223: 13.03374768 | P223: long | Q223: stay long | R223: 0 | S223: 0 | U223: 3442.548239
A224: 2001-09-13 | B224: 4392.4 | D224: 23.48902081 | I224: 0 | J224: 22.83 | K224: =SUM(I216:I224)/10 -> 93.26 | L224: 13.683 | M224: 0.1467188505 | N224: 12.79466632 | P224: long | Q224: stay long | R224: 0 | S224: 0 | U224: 3469.780416
... 3701 more rows
